bitfinex-derivatives/quotes_SOLF0:USTF0_20250516
["timestamp","ask_amount","ask_price","bid_price","bid_amount"]
[1747428855128,121.0,169.35,169.31,5.49539925]
[1747428855932,121.0,169.35,169.28,5.49539925]
[1747428856233,5.9041,169.33,169.29,5.9051]
[1747428856435,121.0,169.35,169.28,5.49539925]
[1747428856630,5.9038,169.33,169.3,5.9047]
[1747428857326,5.9041,169.32,169.3,5.9047]
[1747428857527,60.48,169.31,169.3,5.9047]
[1747428859238,66.3845,169.31,169.26,5.49539925]
[1747428860932,66.3845,169.31,169.29,5.9051]
[1747428861135,60.48,169.31,169.29,5.9051]
[1747428863633,60.48,169.31,169.3,5.9048]
[1747428865036,60.46,169.31,169.25,5.49539925]
[1747428866142,5.9036,169.34,169.31,5.9042]
[1747428866337,60.46,169.33,169.31,5.9042]
[1747428869039,66.3639,169.33,169.31,5.9042]
[1747428871040,66.3639,169.33,169.25,5.49539925]
[1747428871344,5.9042,169.32,169.25,5.49539925]
[1747428871536,5.9042,169.32,169.3,5.9047]
[1747428874945,60.46,169.33,169.24,76.37992541]
[1747428875947,5.9052,169.29,169.27,5.9057]
[1747428876247,60.44,169.28,169.27,5.9057]
[1747428885148,60.44,169.28,169.24,68.87432616]
[1747428886750,60.44,169.28,169.26,5.9059]
[1747428887455,60.44,169.28,169.27,5.9059]
[1747428887652,60.44,169.28,169.24,68.87432616]
[1747428888145,66.3456,169.28,169.25,5.9065]
[1747428888344,60.44,169.28,169.24,68.87432616]
[1747428888543,60.44,169.28,169.27,5.9059]
[1747428890659,60.42,169.3,169.29,5.9052]
[1747428890849,120.8,169.3,169.29,5.9052]
[1747428891249,60.42,169.3,169.29,5.9052]
[1747428891453,120.8,169.3,169.29,5.9052]
[1747428892156,120.8,169.3,169.28,5.9054]
[1747428894055,126.7049,169.3,169.28,5.9054]
[1747428894945,5.9052,169.29,169.24,68.87432616]
[1747428895144,120.8,169.3,169.24,68.87432616]
[1747428895344,5.9057,169.28,169.25,5.9065]
[1747428896359,5.9057,169.28,169.26,5.9061]
[1747428897258,120.8,169.3,169.24,68.87432616]
[1747428897560,60.38,169.3,169.24,68.87432616]
[1747428897855,60.38,169.3,169.29,5.9052]
[1747428899156,60.36,169.3,169.29,5.9052]
[1747428900558,60.36,169.3,169.24,74.36972541]
[1747428901560,5.9052,169.29,169.27,5.9058]
[1747428901753,5.9052,169.29,169.24,74.36972541]
[1747428901954,60.44,169.29,169.24,5.49539925]
[1747428902155,5.9061,169.27,169.24,11.40209925]
[1747428902465,60.34,169.26,169.24,5.9067]
[1747428902757,60.44,169.25,169.22,11.40289925]
[1747428903150,5.9073,169.23,169.22,5.49539925]
[1747428904760,5.9073,169.23,169.2,5.9082]
[1747428904962,60.34,169.22,169.2,5.9082]
[1747428905260,60.34,169.22,169.21,5.908]
[1747428908761,60.34,169.22,169.16,9.44179925]
[1747428909966,66.2479,169.22,169.19,5.9085]
[1747428913272,66.2479,169.22,169.18,5.9089]
[1747428913273,5.908,169.21,169.18,5.9089]
[1747428913470,60.34,169.21,169.14,60.44]
[1747428913970,60.34,169.21,169.13,5.49539925]
[1747428914171,5.9088,169.19,169.16,5.9095]
[1747428914374,60.32,169.18,169.13,5.49539925]
[1747428914772,60.32,169.18,169.17,5.9094]
[1747428916171,60.32,169.18,169.16,5.9097]
[1747428916673,60.32,169.18,169.11,3.7546]
[1747428916872,60.32,169.18,169.17,5.9094]
[1747428917172,60.32,169.18,169.11,3.7546]
[1747428917970,60.34,169.17,169.1,62.3524]
[1747428918170,60.34,169.17,169.09,5.49539925]
[1747428918676,60.34,169.17,169.07,5.49539925]
[1747428919681,66.2495,169.17,169.14,5.9102]
[1747428919981,60.34,169.17,169.07,5.49539925]
[1747428920777,60.34,169.17,169.16,5.9097]
[1747428924185,60.32,169.18,169.17,5.9094]
[1747428927790,60.36,169.2,169.12,1.9776]
[1747428927791,60.36,169.2,169.19,5.9087]
[1747428927986,120.64,169.2,169.19,5.9087]
[1747428929189,120.64,169.2,169.12,5.8785]
[1747428929393,5.9087,169.19,169.12,5.8785]
[1747428929783,120.64,169.2,169.17,5.9093]
[1747428930186,126.56,169.2,169.12,5.8785]
[1747428930486,126.56,169.2,169.04,11.04491978]
[1747428930487,35.49,169.12,169.04,8.73181978]
[1747428930694,9.75533957,169.05,168.93,18.40819964]
[1747428930882,121.1,169.04,168.93,18.40819964]
[1747428931193,127.014,169.04,168.94,3.48394487]
[1747428931395,121.1,169.04,168.96,5.9165]
[1747428931592,121.1,169.04,168.94,3.48394487]
[1747428932098,5.9157,169.0,168.94,9.40114487]
[1747428932290,121.18,168.99,168.94,9.40114487]
[1747428932487,121.18,168.99,168.94,3.48394487]
[1747428932997,121.18,168.99,168.95,5.9169]
[1747428933287,121.18,168.99,168.94,3.48394487]
[1747428933493,121.18,168.99,168.96,5.9165]
[1747428933689,121.18,168.99,168.94,3.48394487]
[1747428934295,121.18,168.99,168.9,66.2081]
[1747428934498,121.18,168.99,168.9,5.8481]
[1747428934688,121.18,168.99,168.95,5.9168]
[1747428934997,121.18,168.99,168.9,5.8481]
[1747428935193,121.18,168.99,168.94,5.9171]
[1747428935390,121.18,168.99,168.9,5.8481]
[1747428935800,121.18,168.99,168.95,5.9169]
[1747428935998,121.18,168.99,168.9,5.8481]
[1747428937397,130.95028364,168.99,168.94,5.9174]
[1747428937586,130.95028364,168.99,168.9,5.8481]
[1747428937992,130.95028364,168.99,168.96,5.9165]
[1747428938196,5.9175,168.94,168.79,9.77028364]
[1747428938498,9.77028364,168.93,168.81,3.8797]
[1747428938700,121.9,168.92,168.91,5.9184]
[1747428939092,520.83028364,168.96,168.81,3.8797]
[1747428939299,121.92,168.95,168.85,9.77028364]
[1747428940002,121.92,168.95,168.93,5.9175]
[1747428940201,511.06,168.96,168.85,9.77028364]
[1747428940400,121.94,168.95,168.85,9.77028364]
[1747428941302,121.94,168.95,168.84,60.8]
[1747428941501,121.94,168.95,168.94,5.9175]
[1747428942105,121.94,168.95,168.93,5.9178]
[1747428942301,121.94,168.95,168.84,60.8]
[1747428942802,61.16,168.94,168.84,60.8]
[1747428943307,61.16,168.94,168.93,5.9178]
[1747428943803,61.16,168.94,168.84,60.8]
[1747428944406,61.16,168.94,168.9,5.9186]
[1747428944907,67.0775,168.94,168.9,5.9186]
[1747428945206,61.16,168.94,168.84,60.8]
[1747428945506,61.16,168.94,168.91,5.9182]
[1747428946205,67.0776,168.94,168.9,5.9185]
[1747428946409,61.16,168.94,168.84,60.8]
[1747428946810,61.16,168.94,168.92,5.918]
[1747428947510,61.16,168.94,168.91,5.9184]
[1747428947709,61.16,168.94,168.84,60.8]
[1747428948214,61.16,168.94,168.9,5.9188]
[1747428948418,61.16,168.94,168.84,60.8]
[1747428948606,61.16,168.94,168.9,5.9188]
[1747428949601,61.16,168.94,168.84,60.8]
[1747428950111,61.16,168.94,168.91,5.9183]
[1747428950711,67.0775,168.94,168.91,5.9183]
[1747428951512,67.0775,168.94,168.9,5.9187]
[1747428951811,67.0775,168.94,168.84,60.8]
[1747428953508,61.16,168.94,168.84,60.8]
[1747428954021,61.16,168.94,168.91,5.9183]
[1747428954199,61.16,168.94,168.84,60.8]
[1747428954607,61.16,168.94,168.92,5.918]
[1747428955211,67.0775,168.94,168.91,5.9184]
[1747428955612,61.16,168.94,168.84,60.8]
[1747428957110,5.9179,168.93,168.9,5.9187]
[1747428957411,60.84,168.92,168.9,5.9187]
[1747428959315,60.84,168.92,168.91,5.9185]
[1747428961016,60.84,168.93,168.92,5.9181]
[1747428961211,121.64,168.93,168.92,5.9181]
[1747428964919,9.77852463,168.97,168.85,9.77852463]
[1747428965126,60.7,168.96,168.88,9.77852463]
[1747428965315,60.7,168.96,168.89,5.8332]
[1747428965511,60.7,168.96,168.95,5.9171]
[1747428965715,60.7,168.96,168.89,5.8332]
[1747428966121,60.7,168.96,168.95,5.9171]
[1747428966316,9.77852463,169.02,168.89,5.8332]
[1747428966516,511.18,169.04,168.91,9.77852463]
[1747428966825,121.4,169.03,169.0,5.915]
[1747428967123,121.4,169.03,169.01,5.915]
[1747428967323,121.4,169.03,168.92,60.7]
[1747428968922,60.64,169.02,168.92,60.7]
[1747428970128,60.7,169.03,169.02,5.9147]
[1747428970328,121.32,169.03,169.02,5.9147]
[1747428970530,60.62,169.03,169.02,5.9147]
[1747428970822,5.9125,169.09,169.06,5.9132]
[1747428971029,121.38,169.08,169.06,5.9132]
[1747428971424,121.38,169.08,169.05,5.9135]
[1747428972027,121.38,169.08,169.05,5.45822004]
[1747428972028,60.7,169.08,169.05,5.45822004]
[1747428972228,60.66,169.09,168.97,15.51412463]
[1747428972529,60.66,169.09,168.98,60.66]
[1747428973428,60.66,169.09,168.98,60.68]
[1747428973734,5.9126,169.08,169.03,5.914]
[1747428973934,60.66,169.07,169.03,5.914]
[1747428974432,66.5732,169.07,169.03,5.914]
[1747428974836,60.66,169.07,169.02,5.9145]
[1747428975028,70.43852463,169.07,168.98,60.68]
[1747428975630,5.9139,169.05,169.02,5.9146]
[1747428975831,60.7,169.04,169.02,5.9146]
[1747428977844,60.7,169.04,169.01,5.9149]
[1747428978044,60.7,169.04,168.97,5.7356]
[1747428978447,60.7,169.04,169.03,5.9143]
[1747428978947,60.7,169.04,169.01,5.9149]
[1747428979147,60.7,169.04,168.97,5.7356]
[1747428979846,60.7,169.04,169.02,5.9146]
[1747428980550,60.7,169.04,169.03,5.9143]
[1747428983647,60.48,169.05,168.97,5.7356]
[1747428984149,60.48,169.05,169.04,5.914]
[1747428986458,60.66,169.07,169.06,5.9133]
[1747428986748,60.42,169.07,169.06,5.9133]
[1747428986954,121.08,169.1,169.01,70.19852463]
[1747428987255,60.42,169.11,169.01,70.19852463]
[1747428987761,60.66,169.13,169.01,70.19852463]
[1747428987955,60.66,169.13,169.02,11.8293]
[1747428988159,60.4,169.12,169.11,5.9112]
[1747428988853,60.66,169.13,169.04,5.8326]
[1747428989054,60.38,169.14,169.12,5.9112]
[1747428989551,60.38,169.14,169.12,5.9109]
[1747428989955,60.38,169.14,169.11,5.9114]
[1747428990345,60.38,169.14,169.05,60.38]
[1747428991059,61.60210296,169.19,169.07,9.77852463]
[1747428991255,61.60210296,169.19,169.08,60.64]
[1747428991660,61.60210296,169.19,169.17,5.9093]
[1747428992054,61.60210296,169.19,169.09,60.42]
[1747428992960,1.18210296,169.19,169.09,60.42]
[1747428993166,60.38,169.18,169.09,60.42]
[1747428994165,60.38,169.18,169.15,5.91]
[1747428994864,60.38,169.18,169.16,5.9098]
[1747428995464,60.38,169.18,169.15,5.91]
[1747428995865,66.2891,169.18,169.09,60.42]
[1747428996664,60.38,169.18,169.15,5.91]
[1747428998862,66.2891,169.18,169.14,5.9103]
[1747428999062,66.2891,169.18,169.08,60.64]
[1747428999063,60.34,169.17,169.08,60.64]
[1747428999462,5.91,169.16,169.08,60.64]
[1747429000568,5.91,169.16,169.13,5.9108]
[1747429000764,60.34,169.17,169.08,60.64]
[1747429000972,9.77852463,169.16,169.05,60.34]
[1747429001670,5.9105,169.14,169.05,60.34]
[1747429001864,60.34,169.13,169.05,60.34]
[1747429002065,120.68,169.13,169.05,60.34]
[1747429002265,120.68,169.13,169.11,5.9115]
[1747429002469,120.68,169.13,169.05,60.34]
[1747429002669,9.77852463,169.19,169.05,72.1671]
[1747429002870,60.34,169.17,169.05,72.1671]
[1747429003470,60.34,169.17,169.15,5.9101]
[1747429004264,60.34,169.17,169.16,5.9098]
[1747429004466,120.68,169.17,169.06,11.826]
[1747429004667,120.68,169.17,169.15,5.9099]
[1747429004867,5.48679216,169.25,169.09,11.8243]
[1747429005173,5.48679216,169.25,169.13,9.77852463]
[1747429005373,5.48679216,169.25,169.14,127.1188]
[1747429006167,60.34,169.26,169.14,127.1188]
[1747429006869,61.02,169.25,169.14,127.1188]
[1747429007574,61.02,169.25,169.24,5.907]
[1747429008479,61.02,169.25,169.23,5.9072]
[1747429010775,61.02,169.25,169.18,60.32]
[1747429011378,61.02,169.25,169.22,5.9076]
[1747429011777,61.02,169.25,169.16,60.32]
[1747429011973,5.907,169.24,169.2,5.9082]
[1747429012377,5.907,169.24,169.16,60.32]
[1747429012578,61.02,169.25,169.16,60.32]
[1747429012877,60.84,169.24,169.16,60.32]
[1747429013069,60.84,169.24,169.23,5.9072]
[1747429014779,60.84,169.24,169.22,5.9075]
[1747429015480,60.84,169.24,169.16,60.32]
[1747429016074,66.7472,169.24,169.2,5.9083]
[1747429016975,60.84,169.24,169.21,5.9079]
[1747429017582,60.84,169.24,169.16,60.32]
[1747429018080,60.84,169.24,169.22,5.9076]
[1747429018881,60.84,169.24,169.21,5.9079]
[1747429019280,60.84,169.24,169.16,60.32]
[1747429019581,60.84,169.24,169.2,5.9083]
[1747429019782,66.7471,169.24,169.2,5.9083]
[1747429020181,66.7471,169.24,169.21,5.9079]
[1747429020680,66.7471,169.24,169.16,60.32]
[1747429020981,60.84,169.24,169.22,5.9076]
[1747429021986,66.747,169.24,169.22,5.9076]
[1747429022785,60.84,169.24,169.22,5.9076]
[1747429023582,60.84,169.24,169.16,60.32]
[1747429024186,60.84,169.24,169.14,3.7996]
[1747429024589,5.9101,169.16,169.13,5.9106]
[1747429024792,60.6,169.15,169.1,1.9791]
[1747429025292,60.6,169.15,169.14,5.9105]
[1747429025682,60.6,169.15,169.1,1.9791]
[1747429025879,60.6,169.15,169.09,65.78137997]
[1747429026080,60.6,169.15,169.09,5.48137997]
[1747429026591,60.6,169.15,169.11,5.9113]
[1747429027088,5.9108,169.13,169.1,5.9117]
[1747429027386,60.56,169.13,169.1,5.9117]
[1747429027790,66.4709,169.13,169.11,5.9115]
[1747429028294,60.56,169.13,169.11,5.9115]
[1747429028492,60.56,169.13,169.12,5.9112]
[1747429030892,60.52,169.15,169.08,3.7556]
[1747429031593,60.52,169.15,169.14,5.9105]
[1747429032408,60.52,169.15,169.08,3.7556]
[1747429032585,70.27459007,169.15,169.08,3.7556]
[1747429034397,5.911,169.13,169.08,3.7556]
[1747429034897,5.911,169.13,169.1,5.9118]
[1747429035499,5.9112,169.12,169.1,5.9118]
[1747429035688,60.46,169.11,169.09,5.9121]
[1747429035888,60.46,169.11,169.08,3.7556]
[1747429036294,60.46,169.11,169.1,5.9119]
[1747429036493,60.58,169.16,169.08,3.7556]
[1747429036793,60.42,169.15,169.08,3.7556]
[1747429037402,60.58,169.16,169.14,5.9102]
[1747429037695,121.06,169.16,169.08,3.7556]
[1747429037896,121.06,169.16,169.13,5.9106]
[1747429038099,121.06,169.16,169.08,3.7556]
[1747429038398,5.9104,169.15,169.11,5.9113]
[1747429038599,60.46,169.14,169.08,3.7556]
[1747429039201,60.46,169.14,169.13,5.9108]
[1747429040001,60.46,169.15,169.08,3.7556]
[1747429041302,60.46,169.15,169.14,5.9105]
[1747429041494,60.46,169.15,169.08,3.7556]
[1747429041804,60.46,169.15,169.14,5.9105]
[1747429045404,60.36,169.16,169.15,5.9099]
[1747429045706,60.36,169.16,169.14,5.9103]
[1747429046194,60.36,169.16,169.12,5.911]
[1747429046397,60.36,169.16,169.08,3.7556]
[1747429047305,5.9103,169.15,169.12,5.9109]
[1747429047505,5.9103,169.15,169.08,3.7556]
[1747429048206,60.6,169.15,169.08,3.7556]
[1747429048602,60.6,169.15,169.1,5.9116]
[1747429048801,5.9107,169.14,169.08,3.7556]
[1747429049006,60.6,169.15,169.09,5.912]
[1747429049197,5.9109,169.13,169.08,1.9042]
[1747429049398,60.36,169.12,169.08,1.9042]
[1747429049705,60.36,169.12,169.1,5.9117]
[1747429050205,66.2712,169.12,169.09,5.912]
[1747429050503,60.36,169.12,169.05,1.9791]
[1747429050706,60.36,169.12,169.08,5.9125]
[1747429050707,5.9121,169.1,169.08,5.9125]
[1747429051007,60.6,169.11,169.08,5.9125]
[1747429051504,66.5117,169.11,169.09,5.9122]
[1747429051707,60.6,169.11,169.04,4.0097]
[1747429052005,60.36,169.12,169.04,4.0097]
[1747429052408,60.36,169.12,169.11,5.9115]
[1747429053796,60.36,169.15,169.14,5.9103]
[1747429056407,60.36,169.16,169.08,1.9431]
[1747429056808,60.6,169.17,169.15,5.9098]
[1747429057004,60.34,169.21,169.11,9.75459007]
[1747429057211,60.36,169.21,169.12,64.0732]
[1747429057410,60.36,169.21,169.19,5.9085]
[1747429057608,60.36,169.21,169.12,64.0732]
[1747429057910,60.36,169.21,169.12,124.4332]
[1747429058510,60.36,169.21,169.19,5.9085]
[1747429058902,60.34,169.24,169.12,124.4332]
[1747429058903,60.34,169.24,169.14,9.75459007]
[1747429059104,61.1,169.25,169.23,5.9071]
[1747429059308,61.1,169.25,169.15,62.2901]
[1747429060112,67.0066,169.25,169.15,62.2901]
[1747429060514,5.9071,169.24,169.15,62.2901]
[1747429060707,60.34,169.23,169.15,62.2901]
[1747429061011,60.34,169.23,169.19,5.9085]
[1747429061312,66.2474,169.23,169.19,5.9085]
[1747429061514,60.34,169.23,169.12,64.0732]
[1747429062213,60.34,169.23,169.2,5.9083]
[1747429062714,60.34,169.23,169.12,64.0732]
[1747429063011,5.9082,169.21,169.12,64.0732]
[1747429063214,61.02,169.2,169.12,64.0732]
[1747429063514,61.02,169.2,169.17,5.9092]
[1747429064511,61.02,169.2,169.12,64.0732]
[1747429065014,66.9285,169.2,169.16,5.9095]
[1747429065314,61.02,169.2,169.12,64.0732]
[1747429065616,61.02,169.2,169.16,5.9097]
[1747429066114,66.9286,169.2,169.16,5.9097]
[1747429066315,66.9286,169.2,169.17,5.9094]
[1747429066516,61.02,169.2,169.17,5.9094]
[1747429067318,66.9284,169.2,169.17,5.9094]
[1747429067913,61.02,169.2,169.12,64.0732]
[1747429068322,61.02,169.2,169.18,5.9087]
[1747429068515,61.02,169.2,169.12,64.0732]
[1747429068709,60.84,169.19,169.12,64.0732]
[1747429068915,60.84,169.19,169.11,60.34]
[1747429069323,121.18,169.19,169.11,60.34]
[1747429069928,121.18,169.19,169.15,5.9098]
[1747429070723,121.18,169.19,169.16,5.9097]
[1747429071430,121.18,169.19,169.17,5.9094]
[1747429071721,121.18,169.19,169.11,60.34]
[1747429071924,60.84,169.19,169.11,60.34]
[1747429072624,60.84,169.19,169.18,5.9091]
[1747429075720,60.66,169.2,169.19,5.9084]
[1747429077226,60.66,169.2,169.18,5.9088]
[1747429078025,60.66,169.2,169.19,5.9087]
[1747429079331,60.66,169.2,169.18,5.909]
[1747429079530,60.66,169.2,169.11,70.09459007]
[1747429080938,60.66,169.2,169.17,5.9092]
[1747429081420,60.66,169.2,169.11,70.09459007]
[1747429082329,60.66,169.2,169.11,81.91759007]
[1747429082531,60.48,169.21,169.2,5.9084]
[1747429082838,60.32,169.25,169.15,60.32]
[1747429083025,60.32,169.25,169.16,66.3006]
[1747429083229,60.48,169.24,169.22,5.9074]
[1747429083430,60.48,169.24,169.16,66.3006]
[1747429083832,5.907,169.24,169.16,66.3006]
[1747429084128,65.80679216,169.28,169.17,9.75459007]
[1747429084327,60.5,169.27,169.25,5.9064]
[1747429086027,60.46,169.27,169.25,5.9064]
[1747429086630,60.44,169.27,169.25,5.9064]
[1747429086931,60.44,169.27,169.24,5.9069]
[1747429087232,60.44,169.27,169.2,60.32]
[1747429087727,60.44,169.27,169.17,9.75459007]
[1747429087922,60.44,169.27,169.16,126.9006]
[1747429088530,5.9068,169.25,169.22,5.9075]
[1747429089029,5.9072,169.24,169.21,5.9079]
[1747429089331,5.9072,169.24,169.16,126.9006]
[1747429089332,60.44,169.27,169.16,126.9006]
[1747429090433,5.9066,169.25,169.16,126.9006]
[1747429090934,5.9066,169.25,169.21,5.9077]
[1747429091134,5.9066,169.25,169.16,126.9006]
[1747429091829,5.9066,169.25,169.16,5.9806]
[1747429092035,5.9066,169.25,169.17,60.42]
[1747429092336,5.9066,169.25,169.22,5.9076]
[1747429093122,5.907,169.24,169.21,5.9079]
[1747429093322,60.34,169.23,169.17,60.42]
[1747429093824,60.34,169.23,169.16,66.4006]
[1747429094233,60.34,169.23,169.21,5.9077]
[1747429094832,60.34,169.23,169.21,5.9078]
[1747429095028,60.34,169.23,169.16,66.4006]
[1747429095432,60.34,169.23,169.22,5.9077]
[1747429096435,60.34,169.26,169.18,9.75459007]
[1747429096631,60.34,169.26,169.18,70.09459007]
[1747429097537,60.34,169.26,169.25,5.9066]
[1747429097738,60.42,169.31,169.21,60.42]
[1747429098036,66.3247,169.31,169.22,2.0288]
[1747429098232,60.34,169.3,169.23,3.7902]
[1747429098736,66.245,169.3,169.27,5.9056]
[1747429099035,60.34,169.3,169.27,5.9056]
[1747429100437,60.34,169.3,169.26,5.9062]
[1747429100633,510.56,169.38,169.23,3.7902]
[1747429100840,60.4,169.4,169.27,9.75459007]
[1747429101135,60.34,169.39,169.28,122.6121]
[1747429101336,70.09459007,169.39,169.28,62.2721]
[1747429102240,70.09459007,169.39,169.35,5.9029]
[1747429102742,75.99659007,169.39,169.35,5.903]
[1747429102937,60.42,169.38,169.28,62.2721]
[1747429103436,60.4,169.4,169.38,5.9021]
[1747429103735,60.38,169.39,169.38,5.9021]
[1747429104335,60.4,169.4,169.38,5.9021]
[1747429104640,60.38,169.39,169.38,5.9021]
[1747429112742,60.38,169.43,169.32,60.38]
[1747429113249,60.38,169.43,169.42,5.9007]
[1747429113449,120.68,169.43,169.42,5.9007]
[1747429113748,60.38,169.43,169.42,5.9007]
[1747429114155,120.68,169.43,169.42,5.9007]
[1747429116050,120.68,169.43,169.41,5.9009]
[1747429117956,120.68,169.43,169.37,3.9654]
[1747429118251,120.68,169.43,169.35,1.9692]
[1747429118752,5.9014,169.41,169.35,1.9692]
[1747429119251,120.68,169.43,169.35,1.9692]
[1747429120052,5.9012,169.41,169.39,5.9017]
[1747429121752,120.68,169.43,169.35,1.9692]
[1747429122557,60.28,169.42,169.35,1.9692]
[1747429123556,60.28,169.42,169.41,5.901]
[1747429126459,60.28,169.42,169.35,1.9692]
[1747429128061,60.28,169.42,169.41,5.901]
[1747429130661,60.28,169.42,169.32,3.7818]
[1747429130864,9.75459007,169.38,169.18,60.26]
[1747429131059,9.75459007,169.38,169.23,2.0349]
[1747429131060,120.52,169.37,169.23,2.0349]
[1747429131361,120.52,169.37,169.24,70.01459007]
[1747429131861,120.52,169.37,169.25,1.9893]
[1747429132363,5.9032,169.35,169.31,5.9042]
[1747429134658,5.9036,169.34,169.3,5.9047]
[1747429135157,5.9036,169.34,169.26,1.9227]
[1747429135464,5.9033,169.35,169.31,5.9045]
[1747429136365,60.26,169.37,169.26,1.9227]
[1747429136563,60.28,169.36,169.27,70.03459007]
[1747429136765,60.28,169.36,169.28,60.28]
[1747429137066,60.28,169.36,169.33,5.9036]
[1747429137260,66.1627,169.37,169.33,5.9036]
[1747429137563,126.4427,169.37,169.33,5.9036]
[1747429138159,120.54,169.37,169.28,60.28]
[1747429138363,11.7976,169.48,169.3,9.75459007]
[1747429138364,60.28,169.38,169.3,9.75459007]
[1747429138663,60.28,169.39,169.31,3.7993]
[1747429139162,66.1819,169.39,169.35,5.9029]
[1747429139665,60.28,169.39,169.31,3.7993]
[1747429140163,66.1818,169.39,169.36,5.9027]
[1747429140370,60.28,169.39,169.36,5.9027]
[1747429140570,120.56,169.4,169.32,60.28]
[1747429140864,120.56,169.4,169.37,5.9022]
[1747429142460,126.4614,169.4,169.36,5.9027]
[1747429142861,126.4614,169.4,169.33,1.8352]
[1747429143062,126.4614,169.4,169.37,5.9022]
[1747429143063,120.56,169.4,169.37,5.9022]
[1747429143565,120.56,169.4,169.33,1.8352]
[1747429143769,60.28,169.4,169.33,11.58979007]
[1747429144066,60.28,169.41,169.33,11.58979007]
[1747429144368,60.28,169.41,169.4,5.9014]
[1747429145367,60.28,169.41,169.33,1.8352]
[1747429145965,60.28,169.41,169.38,5.9018]
[1747429146265,66.1809,169.42,169.38,5.9018]
[1747429146870,5.9009,169.42,169.39,5.9017]
[1747429147169,66.1809,169.42,169.39,5.9017]
[1747429147361,60.28,169.42,169.39,5.9017]
[1747429148562,60.28,169.42,169.33,1.8352]
[1747429149162,70.03459007,169.42,169.35,5.903]
[1747429149672,70.03459007,169.42,169.33,1.8352]
[1747429149970,5.9016,169.4,169.36,5.9025]
[1747429150170,5.9016,169.4,169.33,1.8352]
[1747429150171,66.1616,169.4,169.33,1.8352]
[1747429150674,66.1616,169.4,169.37,5.9023]
[1747429151974,60.26,169.4,169.38,5.902]
[1747429152670,60.26,169.4,169.39,5.9017]
[1747429153276,60.26,169.4,169.38,5.9019]
[1747429153775,60.26,169.4,169.39,5.9017]
[1747429154171,60.28,169.42,169.33,1.8352]
[1747429154575,60.28,169.42,169.41,5.901]
[1747429156674,60.28,169.42,169.4,5.9013]
[1747429157069,60.28,169.42,169.33,62.1152]
[1747429157772,60.28,169.42,169.41,5.901]
[1747429157978,60.26,169.43,169.35,60.26]
[1747429158173,120.52,169.43,169.35,60.26]
[1747429158974,120.52,169.43,169.41,5.9008]
[1747429160777,120.52,169.43,169.42,5.9007]
[1747429160975,60.26,169.43,169.42,5.9007]
[1747429161374,516.3994,169.46,169.42,5.9007]
[1747429161582,60.26,169.45,169.43,5.9002]
[1747429161879,60.26,169.45,169.35,70.01459007]